[Event "44th Chess Olympiad Open 2022"]
[Site "Chennai"]
[Date "2022.08.06"]
[Round "8.56"]
[White "Edwards, Emar"]
[Black "Aboudi, Marwan"]
[Result "0-1"]
[WhiteElo "1695"]
[BlackElo "2144"]
[Annotator "NA RC"]
[PlyCount "92"]
[EventDate "2022.??.??"]
[TimeControl "60"]

1. e4 {[%emt 0:00:03]} c5 {[%emt 0:00:07]} 2. Nf3 {[%emt 0:00:03]} d6 {[%emt 0:
00:00]} 3. d4 {[%emt 0:00:04]} cxd4 {[%emt 0:00:08]} 4. Qxd4 {[%emt 0:00:08]}
Nc6 {[%emt 0:01:42]} 5. Bb5 {[%emt 0:00:06]} Bd7 {[%emt 0:00:09]} 6. Bxc6 {
[%emt 0:00:06]} Bxc6 {[%emt 0:00:09]} 7. Nc3 {[%emt 0:00:06]} Nf6 {[%emt 0:00:
00]} 8. Bg5 {[%emt 0:00:05]} e6 {[%emt 0:00:53]} 9. O-O-O {[%emt 0:00:18]} Be7
{[%emt 0:00:12]} 10. Rhe1 {[%emt 0:00:09]} O-O {[%emt 0:05:46]} 11. Bxf6 {
[%emt 0:00:43]} Bxf6 {[%emt 0:04:40]} 12. Qxd6 {[%emt 0:00:30]} Bxc3 {[%emt 0:
00:00]} 13. bxc3 {[%emt 0:00:03]} Qa5 {[%emt 0:02:46]} 14. Kb2 {[%emt 0:00:08]}
Qb6+ {[%emt 0:02:47]} 15. Qb4 {[%emt 0:00:13]} Qxf2 {[%emt 0:01:07]} 16. Qd4 {
[%emt 0:00:28]} Qxd4 {[%emt 0:00:00]} 17. cxd4 {[%emt 0:00:41]} f5 {[%emt 0:00:
00]} 18. e5 {[%emt 0:30:17]} Bd5 {[%emt 0:09:54]} 19. Re3 {[%emt 0:07:53]} Rac8
{[%emt 0:06:14]} 20. Rdd3 {[%emt 0:06:11]} f4 {[%emt 0:04:32]} 21. Re1 {
[%emt 0:00:14]} Rf5 {[%emt 0:03:56]} 22. Rc3 {[%emt 0:09:00]} Rxc3 {[%emt 0:00:
00]} 23. Kxc3 {[%emt 0:00:02]} g5 {[%emt 0:00:20]} 24. Kb4 {[%emt 0:09:34]} g4
{[%emt 0:00:58]} 25. Nh4 {[%emt 0:06:53]} a5+ {[%emt 0:02:47]} 26. Kxa5 {
[%emt 0:05:58]} Rf8 {[%emt 0:01:48]} 27. Kb4 {[%emt 0:04:40]} Rc8 {[%emt 0:00:
00]} 28. c3 {[%emt 0:11:29]} Rc4+ {[%emt 0:00:36]} 29. Kb3 {[%emt 0:00:02]}
Rxd4+ {[%emt 0:00:36]} 30. Kc2 {[%emt 0:00:14]} Ra4 {[%emt 0:02:33]} 31. a3 {
[%emt 0:02:12]} Kg7 {[%emt 0:07:01]} 32. Rd1 {[%emt 0:03:07]} f3 {[%emt 0:00:
00]} 33. gxf3 {[%emt 0:00:53]} gxf3 {[%emt 0:00:12]} 34. Nf5+ {[%emt 0:00:33]}
Kf8 {[%emt 0:02:35]} 35. Ne3 {[%emt 0:00:49]} Bc6 {[%emt 0:00:43]} 36. Rd4 {
[%emt 0:01:57]} Rxd4 {[%emt 0:01:02]} 37. cxd4 {[%emt 0:00:05]} f2 {[%emt 0:00:
00]} 38. Kc3 {[%emt 0:02:25]} Bb5 {[%emt 0:00:28]} 39. Kb4 {[%emt 0:00:09]}
f1=Q {[%emt 0:00:23]} 40. Nxf1 {[%emt 0:00:02]} Bxf1 {[%emt 0:00:15]} 41. Kc5 {
[%emt 0:30:08]} Bg2 {[%emt 0:30:10]} 42. Kd6 {[%emt 0:00:22]} Kf7 {[%emt 0:00:
00]} 43. a4 {[%emt 0:01:03]} Bd5 {[%emt 0:00:15]} 44. a5 {[%emt 0:00:10]} Kg6 {
[%emt 0:00:12]} 45. Ke7 {[%emt 0:00:56]} h5 {[%emt 0:00:34]} 46. Kf8 {[%emt 0:
00:00]} h4 {[%emt 0:02:27]} 0-1

[Event "44th Chess Olympiad Open 2022"]
[Site "Chennai"]
[Date "2022.08.06"]
[Round "8.57"]
[White "Kulpruethanon, Thanadon"]
[Black "Wojciechowski, Paul"]
[Result "1-0"]
[WhiteElo "2294"]
[BlackElo "1944"]
[Annotator "RC"]
[PlyCount "123"]
[EventDate "2022.??.??"]
[TimeControl "60"]

1. d4 {[%emt 0:00:03]} Nf6 {[%emt 0:00:10]} 2. c4 {[%emt 0:00:07]} g6 {[%emt 0:
00:00]} 3. Nc3 {[%emt 0:00:14]} d5 {[%emt 0:00:14]} 4. cxd5 {[%emt 0:00:29]}
Nxd5 {[%emt 0:00:06]} 5. e4 {[%emt 0:00:19]} Nxc3 {[%emt 0:00:05]} 6. bxc3 {
[%emt 0:00:05]} Bg7 {[%emt 0:00:16]} 7. Be3 {[%emt 0:00:11]} c5 {[%emt 0:00:44]
} 8. Qd2 {[%emt 0:00:29]} Qa5 {[%emt 0:05:32]} 9. Nf3 {[%emt 0:00:47]} Nc6 {
[%emt 0:04:08]} 10. Rc1 {[%emt 0:01:35]} O-O {[%emt 0:24:44]} 11. d5 {[%emt 0:
00:00]} Rd8 {[%emt 0:01:25]} 12. Bd3 {[%emt 0:13:02]} e6 {[%emt 0:10:13]} 13.
Bg5 {[%emt 0:09:43]} exd5 {[%emt 0:04:44]} 14. Bxd8 {[%emt 0:01:57]} Qxd8 {
[%emt 0:00:05]} 15. exd5 {[%emt 0:13:13]} Qxd5 {[%emt 0:00:11]} 16. Be2 {
[%emt 0:01:15]} Qxd2+ {[%emt 0:06:31]} 17. Nxd2 {[%emt 0:00:16]} Be6 {[%emt 0:
00:00]} 18. Bc4 {[%emt 0:01:13]} Bxc4 {[%emt 0:05:26]} 19. Nxc4 {[%emt 0:03:37]
} Re8+ {[%emt 0:03:30]} 20. Kd1 {[%emt 0:01:23]} b5 {[%emt 0:01:01]} 21. Ne3 {
[%emt 0:00:26]} Ne5 {[%emt 0:08:24]} 22. Kc2 {[%emt 0:09:31]} c4 {[%emt 0:00:
00]} 23. Rb1 {[%emt 0:00:50]} a6 {[%emt 0:00:59]} 24. a4 {[%emt 0:01:31]} Nd3 {
[%emt 0:00:39]} 25. axb5 {[%emt 0:00:12]} axb5 {[%emt 0:00:17]} 26. Rxb5 {
[%emt 0:01:47]} Nxf2 {[%emt 0:00:13]} 27. Rf1 {[%emt 0:00:29]} Ne4 {[%emt 0:00:
00]} 28. Rfb1 {[%emt 0:08:15]} Bxc3 {[%emt 0:03:08]} 29. Rb8 {[%emt 0:02:32]}
Rxb8 {[%emt 0:00:11]} 30. Rxb8+ {[%emt 0:00:07]} Kg7 {[%emt 0:00:02]} 31. Nxc4
{[%emt 0:01:05]} Bf6 {[%emt 0:04:13]} 32. Rb7 {[%emt 0:03:46]} h5 {[%emt 0:00:
00]} 33. Rc7 {[%emt 0:02:45]} h4 {[%emt 0:00:44]} 34. Kd3 {[%emt 0:01:59]} Ng5
{[%emt 0:00:30]} 35. Ke2 {[%emt 0:03:22]} Kh6 {[%emt 0:01:42]} 36. h3 {[%emt 0:
00:00]} Bd4 {[%emt 0:03:10]} 37. Rd7 {[%emt 0:01:12]} Bc3 {[%emt 0:01:27]} 38.
Ne3 {[%emt 0:06:57]} Kg7 {[%emt 0:00:45]} 39. Rc7 {[%emt 0:01:18]} Be5 {
[%emt 0:01:13]} 40. Rc4 {[%emt 0:00:25]} Ne6 {[%emt 0:01:42]} 41. Rxh4 {
[%emt 0:30:42]} Bf4 {[%emt 0:10:27]} 42. Nd5 {[%emt 0:00:00]} g5 {[%emt 0:00:
00]} 43. Rg4 {[%emt 0:00:00]} f5 {[%emt 0:03:16]} 44. Rxf4 {[%emt 0:00:00]}
gxf4 {[%emt 0:00:07]} 45. Kf3 {[%emt 0:00:00]} Kh6 {[%emt 0:01:31]} 46. Nxf4 {
[%emt 0:00:00]} Ng5+ {[%emt 0:01:07]} 47. Ke3 {[%emt 0:00:00]} Ne4 {[%emt 0:00:
00]} 48. h4 {[%emt 0:00:00]} Kg7 {[%emt 0:03:19]} 49. Kd4 {[%emt 0:00:00]} Kf6
{[%emt 0:01:08]} 50. g4 {[%emt 0:00:00]} Nd2 {[%emt 0:02:34]} 51. g5+ {[%emt 0:
00:00]} Kg7 {[%emt 0:01:22]} 52. Ke3 {[%emt 0:00:00]} Nc4+ {[%emt 0:00:18]} 53.
Kf3 {[%emt 0:00:00]} Nd2+ {[%emt 0:01:24]} 54. Ke2 {[%emt 0:00:00]} Nc4 {
[%emt 0:00:33]} 55. Kf2 {[%emt 0:00:00]} Nd6 {[%emt 0:02:06]} 56. Kf3 {[%emt 0:
00:00]} Ne4 {[%emt 0:00:57]} 57. Ke3 {[%emt 0:01:37]} Nc5 {[%emt 0:03:06]} 58.
Kd4 {[%emt 0:01:26]} Ne4 {[%emt 0:00:29]} 59. Ke5 {[%emt 0:00:37]} Ng3 {
[%emt 0:00:09]} 60. h5 {[%emt 0:01:47]} Kf7 {[%emt 0:02:08]} 61. h6 {[%emt 0:
00:00]} Kg8 {[%emt 0:00:56]} 62. g6 {[%emt 0:00:33]} 1-0

[Event "44th Chess Olympiad Open 2022"]
[Site "Chennai"]
[Date "2022.08.06"]
[Round "8.57"]
[White "Arunnuntapanich, Tinnakrit"]
[Black "Gurner, Jem"]
[Result "1-0"]
[WhiteElo "2117"]
[BlackElo "1800"]
[Annotator "NA RC"]
[PlyCount "105"]
[EventDate "2022.??.??"]
[TimeControl "60"]

1. d4 {[%emt 0:00:02]} g6 {[%emt 0:00:04]} 2. c4 {[%emt 0:00:03]} Bg7 {[%emt 0:
00:00]} 3. e4 {[%emt 0:00:04]} d6 {[%emt 0:00:04]} 4. Nc3 {[%emt 0:00:04]} e5 {
[%emt 0:00:05]} 5. Nf3 {[%emt 0:00:17]} Nc6 {[%emt 0:00:17]} 6. dxe5 {[%emt 0:
00:00]} Nxe5 {[%emt 0:00:42]} 7. Nxe5 {[%emt 0:00:10]} dxe5 {[%emt 0:00:16]} 8.
Qxd8+ {[%emt 0:00:16]} Kxd8 {[%emt 0:00:04]} 9. Bg5+ {[%emt 0:00:12]} f6 {
[%emt 0:00:33]} 10. O-O-O+ {[%emt 0:02:48]} Bd7 {[%emt 0:00:17]} 11. Be2 {
[%emt 0:00:36]} Kc8 {[%emt 0:13:12]} 12. Be3 {[%emt 0:06:26]} Bh6 {[%emt 0:00:
00]} 13. Bxh6 {[%emt 0:30:11]} Nxh6 {[%emt 0:00:06]} 14. Rd2 {[%emt 0:00:17]}
c6 {[%emt 0:16:31]} 15. Rd6 {[%emt 0:05:07]} f5 {[%emt 0:10:31]} 16. Rhd1 {
[%emt 0:00:46]} Rd8 {[%emt 0:00:14]} 17. h4 {[%emt 0:25:32]} fxe4 {[%emt 0:00:
00]} 18. Nxe4 {[%emt 0:01:31]} Nf5 {[%emt 0:00:46]} 19. Rf6 {[%emt 0:00:08]}
Nd4 {[%emt 0:05:40]} 20. Bd3 {[%emt 0:00:26]} Be6 {[%emt 0:18:10]} 21. Ng5 {
[%emt 0:02:29]} Bg8 {[%emt 0:00:26]} 22. Re1 {[%emt 0:00:48]} Kc7 {[%emt 0:00:
00]} 23. Rxe5 {[%emt 0:01:10]} Re8 {[%emt 0:00:43]} 24. Rxe8 {[%emt 0:02:14]}
Rxe8 {[%emt 0:00:03]} 25. Kd2 {[%emt 0:07:25]} Kb6 {[%emt 0:00:39]} 26. Rf4 {
[%emt 0:03:57]} Rd8 {[%emt 0:01:22]} 27. Kc3 {[%emt 0:00:36]} Ne6 {[%emt 0:00:
00]} 28. Nxe6 {[%emt 0:01:03]} Bxe6 {[%emt 0:00:02]} 29. Rf6 {[%emt 0:00:13]}
Bg8 {[%emt 0:01:25]} 30. h5 {[%emt 0:04:01]} gxh5 {[%emt 0:00:16]} 31. Rh6 {
[%emt 0:00:05]} Bf7 {[%emt 0:00:48]} 32. Rf6 {[%emt 0:03:50]} Rd7 {[%emt 0:00:
00]} 33. b4 {[%emt 0:01:26]} Kc7 {[%emt 0:02:21]} 34. a4 {[%emt 0:00:43]} Kd8 {
[%emt 0:02:19]} 35. a5 {[%emt 0:01:05]} Ke7 {[%emt 0:00:08]} 36. Rh6 {[%emt 0:
00:00]} Kf8 {[%emt 0:01:33]} 37. a6 {[%emt 0:00:12]} bxa6 {[%emt 0:00:49]} 38.
Rxc6 {[%emt 0:00:08]} a5 {[%emt 0:00:23]} 39. b5 {[%emt 0:01:10]} Be8 {[%emt 0:
00:00]} 40. Ra6 {[%emt 0:00:32]} Rg7 {[%emt 0:00:24]} 41. Be4 {[%emt 0:30:41]}
Rc7 {[%emt 0:30:39]} 42. Rxa5 {[%emt 0:00:49]} Bf7 {[%emt 0:00:00]} 43. Bc6 {
[%emt 0:00:00]} Ke7 {[%emt 0:00:00]} 44. Kd4 {[%emt 0:00:00]} Bg6 {[%emt 0:00:
00]} 45. Ra1 {[%emt 0:00:00]} Kf6 {[%emt 0:00:00]} 46. c5 {[%emt 0:00:00]} Ke7
{[%emt 0:00:00]} 47. Bd5 {[%emt 0:00:00]} Rd7 {[%emt 0:00:00]} 48. c6 {[%emt 0:
00:00]} Rc7 {[%emt 0:00:00]} 49. Kc5 {[%emt 0:00:00]} Be8 {[%emt 0:00:00]} 50.
b6 {[%emt 0:00:00]} axb6+ {[%emt 0:00:00]} 51. Kxb6 {[%emt 0:00:00]} Kd6 {
[%emt 0:00:00]} 52. Rd1 {[%emt 0:00:00]} Rc8 {[%emt 0:00:00]} 53. c7 {[%emt 0:
00:00]} 1-0

[Event "44th Chess Olympiad Open 2022"]
[Site "Chennai"]
[Date "2022.08.06"]
[Round "8.57"]
[White "Belzo, Krzysztof"]
[Black "Laohawirapap, Prin"]
[Result "1-0"]
[WhiteElo "2080"]
[BlackElo "2230"]
[Annotator "NA RC"]
[PlyCount "93"]
[EventDate "2022.??.??"]
[TimeControl "60"]

1. d4 {[%emt 0:00:02]} Nf6 {[%emt 0:00:04]} 2. Nf3 {[%emt 0:00:17]} g6 {
[%emt 0:00:07]} 3. g3 {[%emt 0:00:11]} Bg7 {[%emt 0:00:15]} 4. Bg2 {[%emt 0:00:
00]} O-O {[%emt 0:00:09]} 5. O-O {[%emt 0:00:16]} d6 {[%emt 0:00:51]} 6. c4 {
[%emt 0:00:18]} Nc6 {[%emt 0:00:11]} 7. Nc3 {[%emt 0:00:18]} a6 {[%emt 0:00:06]
} 8. e4 {[%emt 0:09:52]} Bg4 {[%emt 0:00:33]} 9. h3 {[%emt 0:02:00]} Bxf3 {
[%emt 0:01:07]} 10. Bxf3 {[%emt 0:00:02]} Nd7 {[%emt 0:02:32]} 11. Be3 {
[%emt 0:02:25]} e5 {[%emt 0:02:16]} 12. dxe5 {[%emt 0:06:55]} Ndxe5 {[%emt 0:
00:00]} 13. Be2 {[%emt 0:02:13]} Na5 {[%emt 0:08:31]} 14. c5 {[%emt 0:09:37]}
Nac4 {[%emt 0:16:41]} 15. Qc1 {[%emt 0:07:41]} Nxe3 {[%emt 0:02:09]} 16. Qxe3 {
[%emt 0:00:02]} dxc5 {[%emt 0:01:17]} 17. Qxc5 {[%emt 0:00:28]} b6 {[%emt 0:00:
00]} 18. Qe3 {[%emt 0:12:18]} c5 {[%emt 0:04:13]} 19. Rfd1 {[%emt 0:08:19]} Qc8
{[%emt 0:00:23]} 20. Nd5 {[%emt 0:03:00]} Qxh3 {[%emt 0:05:41]} 21. Nxb6 {
[%emt 0:08:00]} Rab8 {[%emt 0:06:29]} 22. Qxc5 {[%emt 0:03:46]} h5 {[%emt 0:00:
00]} 23. Qe3 {[%emt 0:14:13]} h4 {[%emt 0:00:22]} 24. Nc4 {[%emt 0:03:09]} Nxc4
{[%emt 0:01:25]} 25. Bxc4 {[%emt 0:00:01]} Bxb2 {[%emt 0:04:16]} 26. Rab1 {
[%emt 0:00:48]} hxg3 {[%emt 0:00:16]} 27. Qxg3 {[%emt 0:00:40]} Qh6 {[%emt 0:
00:00]} 28. Bb3 {[%emt 0:01:18]} Qg7 {[%emt 0:00:55]} 29. Rd7 {[%emt 0:01:37]}
Rb4 {[%emt 0:02:49]} 30. Qd3 {[%emt 0:02:53]} Qf6 {[%emt 0:00:50]} 31. Rd6 {
[%emt 0:00:53]} Qg5+ {[%emt 0:02:25]} 32. Qg3 {[%emt 0:00:11]} Qxg3+ {[%emt 0:
00:00]} 33. fxg3 {[%emt 0:00:03]} Be5 {[%emt 0:00:51]} 34. Rxa6 {[%emt 0:01:02]
} Rxe4 {[%emt 0:00:22]} 35. Rxg6+ {[%emt 0:00:57]} Kh8 {[%emt 0:00:06]} 36. Rg5
{[%emt 0:00:30]} Bf6 {[%emt 0:02:20]} 37. Rf5 {[%emt 0:00:52]} Kg7 {[%emt 0:00:
00]} 38. Rbf1 {[%emt 0:00:23]} Bd4+ {[%emt 0:00:37]} 39. Kg2 {[%emt 0:00:00]}
Re2+ {[%emt 0:00:28]} 40. Kf3 {[%emt 0:01:25]} Re7 {[%emt 0:01:39]} 41. Rg5+ {
[%emt 0:31:25]} Kh6 {[%emt 0:30:04]} 42. Rg4 {[%emt 0:00:00]} Re3+ {[%emt 0:00:
00]} 43. Kf4 {[%emt 0:00:00]} Re5 {[%emt 0:00:00]} 44. Rh1+ {[%emt 0:00:00]}
Rh5 {[%emt 0:00:00]} 45. Rxh5+ {[%emt 0:00:00]} Kxh5 {[%emt 0:00:00]} 46. Kf5 {
[%emt 0:00:00]} Bf6 {[%emt 0:00:00]} 47. Bd1 {[%emt 0:00:00]} 1-0

[Event "44th Chess Olympiad Open 2022"]
[Site "Chennai"]
[Date "2022.08.06"]
[Round "8.57"]
[White "Forbes, Garry"]
[Black "Jingjang, Shin"]
[Result "0-1"]
[WhiteElo "1908"]
[BlackElo "1956"]
[Annotator "NA RC"]
[PlyCount "50"]
[EventDate "2022.??.??"]
[TimeControl "60"]

1. d4 {[%emt 0:00:02]} d5 {[%emt 0:00:06]} 2. Nc3 {[%emt 0:00:01]} Nf6 {
[%emt 0:01:14]} 3. Bf4 {[%emt 0:00:03]} c6 {[%emt 0:01:46]} 4. e3 {[%emt 0:00:
00]} Qb6 {[%emt 0:02:35]} 5. Rb1 {[%emt 0:03:06]} Bf5 {[%emt 0:04:11]} 6. f3 {
[%emt 0:03:08]} e6 {[%emt 0:02:30]} 7. g4 {[%emt 0:00:02]} Bg6 {[%emt 0:00:03]}
8. h4 {[%emt 0:00:09]} h6 {[%emt 0:03:15]} 9. Bd3 {[%emt 0:00:52]} Bxd3 {
[%emt 0:01:57]} 10. cxd3 {[%emt 0:01:26]} c5 {[%emt 0:08:25]} 11. dxc5 {
[%emt 0:01:06]} Bxc5 {[%emt 0:00:09]} 12. d4 {[%emt 0:00:05]} Bd6 {[%emt 0:00:
00]} 13. Nge2 {[%emt 0:01:57]} Nbd7 {[%emt 0:10:38]} 14. Kf2 {[%emt 0:15:43]}
Bxf4 {[%emt 0:09:26]} 15. Nxf4 {[%emt 0:02:48]} O-O-O {[%emt 0:01:52]} 16. Na4
{[%emt 0:03:23]} Qd6 {[%emt 0:01:45]} 17. b4 {[%emt 0:03:41]} g5 {[%emt 0:00:
00]} 18. hxg5 {[%emt 0:08:59]} hxg5 {[%emt 0:00:21]} 19. Rxh8 {[%emt 0:00:26]}
Rxh8 {[%emt 0:00:13]} 20. Ng2 {[%emt 0:00:00]} Rh3 {[%emt 0:05:06]} 21. Qc2+ {
[%emt 0:31:01]} Kb8 {[%emt 0:00:26]} 22. Rc1 {[%emt 0:02:17]} Qg3+ {[%emt 0:00:
00]} 23. Kg1 {[%emt 0:00:01]} Rh8 {[%emt 0:20:16]} 24. Nc5 {[%emt 0:00:04]} Nb6
{[%emt 0:00:37]} 25. Qf2 {[%emt 0:07:43]} Rh1+ {[%emt 0:00:17]} 0-1

[Event "44th Chess Olympiad Open 2022"]
[Site "Chennai"]
[Date "2022.08.06"]
[Round "8.58"]
[White "Abdelazeez, Mohamed Abdalla"]
[Black "Al Mutairi, Abdullah F"]
[Result "1-0"]
[WhiteElo "2182"]
[BlackElo "1916"]
[Annotator "NA RC"]
[PlyCount "128"]
[EventDate "2022.??.??"]
[TimeControl "60"]

1. d4 {[%emt 0:00:03]} d5 {[%emt 0:00:22]} 2. c4 {[%emt 0:00:06]} c6 {[%emt 0:
00:00]} 3. Nc3 {[%emt 0:00:17]} Nf6 {[%emt 0:00:13]} 4. Nf3 {[%emt 0:00:06]}
Bf5 {[%emt 0:02:20]} 5. cxd5 {[%emt 0:02:16]} cxd5 {[%emt 0:00:18]} 6. e3 {
[%emt 0:00:07]} Nc6 {[%emt 0:00:49]} 7. Ne5 {[%emt 0:02:54]} a6 {[%emt 0:03:28]
} 8. Qa4 {[%emt 0:02:52]} Qc8 {[%emt 0:05:25]} 9. Nxc6 {[%emt 0:01:13]} Bd7 {
[%emt 0:01:54]} 10. Nxe7 {[%emt 0:00:10]} Qxc3+ {[%emt 0:02:28]} 11. bxc3 {
[%emt 0:00:06]} Bxa4 {[%emt 0:00:14]} 12. Nf5 {[%emt 0:00:07]} g6 {[%emt 0:00:
00]} 13. Ng3 {[%emt 0:00:11]} h5 {[%emt 0:00:18]} 14. Bd3 {[%emt 0:00:13]} Bd6
{[%emt 0:01:45]} 15. Ne2 {[%emt 0:05:44]} O-O {[%emt 0:05:27]} 16. Rb1 {
[%emt 0:01:03]} Bc6 {[%emt 0:00:33]} 17. f3 {[%emt 0:06:52]} Rfe8 {[%emt 0:00:
00]} 18. Kf2 {[%emt 0:00:07]} g5 {[%emt 0:02:47]} 19. h4 {[%emt 0:00:15]} g4 {
[%emt 0:00:17]} 20. Bd2 {[%emt 0:00:08]} b5 {[%emt 0:00:34]} 21. Ng3 {[%emt 0:
00:00]} Bd7 {[%emt 0:00:41]} 22. Rhe1 {[%emt 0:00:30]} Kh8 {[%emt 0:02:26]} 23.
e4 {[%emt 0:01:37]} gxf3 {[%emt 0:05:47]} 24. e5 {[%emt 0:03:35]} Ng4+ {
[%emt 0:00:38]} 25. Kxf3 {[%emt 0:00:08]} Be7 {[%emt 0:01:54]} 26. Rh1 {
[%emt 0:00:12]} f6 {[%emt 0:00:40]} 27. Bg6 {[%emt 0:00:38]} Rf8 {[%emt 0:00:
00]} 28. e6 {[%emt 0:00:10]} Bxe6 {[%emt 0:06:19]} 29. Rbe1 {[%emt 0:00:08]}
Ne5+ {[%emt 0:01:58]} 30. dxe5 {[%emt 0:02:12]} fxe5+ {[%emt 0:00:16]} 31. Ke2
{[%emt 0:00:07]} Rg8 {[%emt 0:04:42]} 32. Bf5 {[%emt 0:08:48]} Bf7 {[%emt 0:00:
00]} 33. Kf3 {[%emt 0:04:03]} Bd6 {[%emt 0:04:46]} 34. Bg5 {[%emt 0:00:18]} e4+
{[%emt 0:00:53]} 35. Kf2 {[%emt 0:00:17]} Be5 {[%emt 0:00:32]} 36. Re3 {
[%emt 0:00:42]} Raf8 {[%emt 0:01:54]} 37. Be7 {[%emt 0:00:18]} Rb8 {[%emt 0:00:
00]} 38. Bc5 {[%emt 0:00:26]} Rgf8 {[%emt 0:05:18]} 39. Rf1 {[%emt 0:02:16]}
Be6 {[%emt 0:25:26]} 40. Bxf8 {[%emt 0:00:16]} Rxf8 {[%emt 0:00:59]} 41. Ke1 {
[%emt 0:30:19]} Bg8 {[%emt 0:15:59]} 42. Bh3 {[%emt 0:00:00]} Rxf1+ {[%emt 0:
00:00]} 43. Nxf1 {[%emt 0:00:00]} a5 {[%emt 0:00:20]} 44. Bd7 {[%emt 0:00:00]}
b4 {[%emt 0:02:18]} 45. cxb4 {[%emt 0:00:00]} axb4 {[%emt 0:00:34]} 46. Ba4 {
[%emt 0:00:00]} Be6 {[%emt 0:03:41]} 47. Bb3 {[%emt 0:00:00]} Bf6 {[%emt 0:00:
00]} 48. g3 {[%emt 0:00:00]} Bg8 {[%emt 0:00:28]} 49. Re2 {[%emt 0:00:00]} Kg7
{[%emt 0:00:24]} 50. Ne3 {[%emt 0:00:00]} Bc3+ {[%emt 0:01:13]} 51. Kf1 {
[%emt 0:00:00]} Be6 {[%emt 0:04:27]} 52. Bxd5 {[%emt 0:00:00]} Bh3+ {[%emt 0:
00:00]} 53. Kf2 {[%emt 0:00:00]} Kf6 {[%emt 0:00:21]} 54. Bxe4 {[%emt 0:00:00]}
Ke5 {[%emt 0:00:22]} 55. Bg6 {[%emt 0:00:00]} Bd4 {[%emt 0:00:52]} 56. Bxh5 {
[%emt 0:00:00]} Be6 {[%emt 0:00:16]} 57. Bf3 {[%emt 0:00:00]} Bc4 {[%emt 0:00:
00]} 58. Rd2 {[%emt 0:00:00]} Be6 {[%emt 0:01:14]} 59. Rxd4 {[%emt 0:00:00]}
Kxd4 {[%emt 0:00:15]} 60. Bd5 {[%emt 0:00:00]} Bxd5 {[%emt 0:00:47]} 61. Nxd5 {
[%emt 0:00:57]} Kxd5 {[%emt 0:00:00]} 62. h5 {[%emt 0:00:05]} Ke6 {[%emt 0:00:
00]} 63. Ke3 {[%emt 0:00:08]} b3 {[%emt 0:00:31]} 64. axb3 {[%emt 0:00:03]} Kd5
{[%emt 0:00:17]} 1-0

[Event "44th Chess Olympiad Open 2022"]
[Site "Chennai"]
[Date "2022.08.06"]
[Round "8.58"]
[White "Al Thebaiti Ahmed M"]
[Black "Tagelsir, Abubaker"]
[Result "0-1"]
[WhiteElo "1966"]
[BlackElo "2232"]
[Annotator "NA RC"]
[PlyCount "114"]
[EventDate "2022.??.??"]
[TimeControl "60"]

1. d4 {[%emt 0:00:04]} Nf6 {[%emt 0:00:18]} 2. c4 {[%emt 0:00:20]} b6 {[%emt 0:
00:00]} 3. Nc3 {[%emt 0:01:22]} Bb7 {[%emt 0:00:06]} 4. Nf3 {[%emt 0:03:37]} e6
{[%emt 0:01:28]} 5. e3 {[%emt 0:02:49]} Bb4 {[%emt 0:00:29]} 6. Bd2 {[%emt 0:
00:00]} O-O {[%emt 0:00:22]} 7. Bd3 {[%emt 0:00:29]} c5 {[%emt 0:01:59]} 8. O-O
{[%emt 0:03:39]} d6 {[%emt 0:01:21]} 9. a3 {[%emt 0:02:14]} Ba5 {[%emt 0:00:20]
} 10. Qe2 {[%emt 0:03:22]} Nbd7 {[%emt 0:01:15]} 11. b4 {[%emt 0:10:32]} cxb4 {
[%emt 0:01:54]} 12. Nb5 {[%emt 0:00:07]} b3 {[%emt 0:00:49]} 13. Bxa5 {[%emt 0:
00:00]} bxa5 {[%emt 0:00:07]} 14. Nxd6 {[%emt 0:12:52]} Rb8 {[%emt 0:04:33]}
15. e4 {[%emt 0:12:02]} Ba8 {[%emt 0:09:02]} 16. e5 {[%emt 0:05:16]} Ne8 {
[%emt 0:00:20]} 17. Ne4 {[%emt 0:05:18]} a4 {[%emt 0:03:39]} 18. Neg5 {[%emt 0:
00:00]} g6 {[%emt 0:04:43]} 19. h4 {[%emt 0:00:20]} Ng7 {[%emt 0:00:39]} 20.
Be4 {[%emt 0:04:57]} h6 {[%emt 0:04:33]} 21. Nh3 {[%emt 0:07:48]} Bxe4 {
[%emt 0:00:41]} 22. Qxe4 {[%emt 0:00:09]} Nb6 {[%emt 0:00:16]} 23. c5 {[%emt 0:
00:00]} Nd5 {[%emt 0:00:05]} 24. Nf4 {[%emt 0:01:25]} b2 {[%emt 0:01:24]} 25.
Rae1 {[%emt 0:02:07]} Nc3 {[%emt 0:01:32]} 26. Qc2 {[%emt 0:00:23]} Rb3 {
[%emt 0:01:01]} 27. Nd2 {[%emt 0:02:06]} Qxd4 {[%emt 0:00:12]} 28. Nxb3 {
[%emt 0:00:29]} axb3 {[%emt 0:00:18]} 29. Qxb2 {[%emt 0:00:16]} Nf5 {[%emt 0:
00:00]} 30. Qxb3 {[%emt 0:00:48]} Ng3 {[%emt 0:00:59]} 31. Re3 {[%emt 0:02:05]}
Nxf1 {[%emt 0:02:01]} 32. Qxc3 {[%emt 0:00:11]} Qxf4 {[%emt 0:00:50]} 33. Kxf1
{[%emt 0:00:07]} Qxh4 {[%emt 0:00:05]} 34. c6 {[%emt 0:01:24]} Rc8 {[%emt 0:00:
00]} 35. Ke2 {[%emt 0:00:35]} Qa4 {[%emt 0:00:31]} 36. c7 {[%emt 0:00:30]} Qd7
{[%emt 0:01:08]} 37. Rd3 {[%emt 0:00:13]} Qxc7 {[%emt 0:00:14]} 38. Qxc7 {
[%emt 0:00:33]} Rxc7 {[%emt 0:00:04]} 39. Rd8+ {[%emt 0:00:23]} Kg7 {[%emt 0:
00:00]} 40. Rd3 {[%emt 0:00:52]} Rc4 {[%emt 0:01:55]} 41. Re3 {[%emt 0:13:11]}
Rd4 {[%emt 0:01:08]} 42. Kf3 {[%emt 0:01:40]} h5 {[%emt 0:00:35]} 43. Rb3 {
[%emt 0:00:25]} Ra4 {[%emt 0:00:00]} 44. Ke3 {[%emt 0:08:14]} g5 {[%emt 0:00:
00]} 45. g3 {[%emt 0:00:10]} Kg6 {[%emt 0:00:00]} 46. f4 {[%emt 0:07:01]} gxf4+
{[%emt 0:02:51]} 47. gxf4 {[%emt 0:00:06]} Kf5 {[%emt 0:00:05]} 48. Rc3 {
[%emt 0:00:33]} h4 {[%emt 0:00:25]} 49. Ke2 {[%emt 0:00:47]} Re4+ {[%emt 0:00:
00]} 50. Kd2 {[%emt 0:00:19]} Rxf4 {[%emt 0:00:08]} 51. Rc7 {[%emt 0:00:20]}
Kg4 {[%emt 0:00:24]} 52. Rxa7 {[%emt 0:00:30]} h3 {[%emt 0:00:06]} 53. Ra8 {
[%emt 0:00:09]} h2 {[%emt 0:00:06]} 54. Rh8 {[%emt 0:00:08]} Kg3 {[%emt 0:00:
00]} 55. Ke3 {[%emt 0:00:31]} Rh4 {[%emt 0:00:37]} 56. Rg8+ {[%emt 0:01:02]}
Rg4 {[%emt 0:00:06]} 57. Rh8 {[%emt 0:00:08]} Kg2 {[%emt 0:00:11]} 0-1